[Event "Titled Tuesday Blitz February 28 Early 2023"]
[White "Seletsky, Grigory"]
[Black "Crevatin, Leo"]
[WhiteFideId "14112191"]
[BlackFideId "1726307"]
[WhiteElo "2490"]
[BlackElo "2190"]
[Result "1-0"]
[Round "03"]
[TimeControl "180+2"]
[Date "2023.02.28"]
[WhiteClock "0:00:54"]
[BlackClock "0:00:01"]

1. d4 {[%clk 0:02:51]}  Nf6 {[%clk 0:02:58]} 2. Nf3 {[%clk 0:02:52]}  d5 {[%clk 0:02:58]} 3. Bf4 {[%clk 0:02:48]}  c5 {[%clk 0:02:54]} 4. c3 {[%clk 0:02:48]}  Nc6 {[%clk 0:02:54]} 5. e3 {[%clk 0:02:49]}  Qb6 {[%clk 0:02:53]} 6. Qb3 {[%clk 0:02:48]}  c4 {[%clk 0:02:53]} 7. Qc2 {[%clk 0:02:49]}  Bf5 {[%clk 0:02:52]} 8. Qc1 {[%clk 0:02:49]}  e6 {[%clk 0:02:49]} 9. h3 {[%clk 0:02:49]}  h6 {[%clk 0:02:44]} 10. Nbd2 {[%clk 0:02:50]}  Qd8 {[%clk 0:02:39]} 11. Be2 {[%clk 0:02:50]}  Bd6 {[%clk 0:02:39]} 12. Bxd6 {[%clk 0:02:49]}  Qxd6 {[%clk 0:02:40]} 13. O-O {[%clk 0:02:49]}  g5 {[%clk 0:02:36]} 14. Bd1 {[%clk 0:02:47]}  g4 {[%clk 0:02:35]} 15. hxg4 {[%clk 0:02:47]}  Nxg4 {[%clk 0:02:31]} 16. Bc2 {[%clk 0:02:47]}  Rg8 {[%clk 0:02:23]} 17. e4 {[%clk 0:02:41]}  dxe4 {[%clk 0:02:23]} 18. Nxe4 {[%clk 0:02:40]}  Bxe4 {[%clk 0:02:17]} 19. Bxe4 {[%clk 0:02:39]}  O-O-O {[%clk 0:02:18]} 20. b3 {[%clk 0:02:32]}  f5 {[%clk 0:01:57]} 21. Bxc6 {[%clk 0:02:23]}  Qxc6 {[%clk 0:01:58]} 22. Qf4 {[%clk 0:02:20]}  Nf6 {[%clk 0:01:51]} 23. g3 {[%clk 0:02:18]}  Nh5 {[%clk 0:01:45]} 24. Qe3 {[%clk 0:02:14]}  f4 {[%clk 0:01:43]} 25. Qe2 {[%clk 0:02:08]}  fxg3 {[%clk 0:01:43]} 26. Qxc4 {[%clk 0:01:59]}  Nf4 {[%clk 0:01:24]} 27. Qxc6+ {[%clk 0:01:47]}  bxc6 {[%clk 0:01:25]} 28. Ne5 {[%clk 0:01:45]}  g2 {[%clk 0:01:14]} 29. Rfe1 {[%clk 0:01:45]}  Nh3+ {[%clk 0:01:13]} 30. Kh2 {[%clk 0:01:45]}  g1=Q+ {[%clk 0:01:03]} 31. Rxg1 {[%clk 0:01:46]}  Nxg1 {[%clk 0:01:03]} 32. Rxg1 {[%clk 0:01:46]}  Rxg1 {[%clk 0:01:04]} 33. Kxg1 {[%clk 0:01:46]}  Kc7 {[%clk 0:01:03]} 34. f4 {[%clk 0:01:34]}  c5 {[%clk 0:00:45]} 35. dxc5 {[%clk 0:01:31]}  Rd1+ {[%clk 0:00:41]} 36. Kf2 {[%clk 0:01:31]}  Rd2+ {[%clk 0:00:42]} 37. Ke3 {[%clk 0:01:31]}  Rxa2 {[%clk 0:00:42]} 38. b4 {[%clk 0:01:31]}  h5 {[%clk 0:00:35]} 39. Nf3 {[%clk 0:01:30]}  Kc6 {[%clk 0:00:23]} 40. c4 {[%clk 0:01:27]}  Rg2 {[%clk 0:00:15]} 41. Ne5+ {[%clk 0:01:16]}  Kc7 {[%clk 0:00:15]} 42. Kf3 {[%clk 0:01:17]}  Rb2 {[%clk 0:00:14]} 43. b5 {[%clk 0:01:17]}  Rb3+ {[%clk 0:00:13]} 44. Kg2 {[%clk 0:01:17]}  Kb7 {[%clk 0:00:06]} 45. Kh2 {[%clk 0:01:15]}  a6 {[%clk 0:00:06]} 46. c6+ {[%clk 0:01:14]}  Kc7 {[%clk 0:00:01]} 47. bxa6 {[%clk 0:01:08]}  Ra3 {[%clk 0:00:01]} 48. c5 {[%clk 0:01:06]}  Rxa6 {[%clk 0:00:02]} 49. Kg3 {[%clk 0:01:06]}  Ra1 {[%clk 0:00:02]} 50. Kh3 {[%clk 0:01:01]}  Rh1+ {[%clk 0:00:02]} 51. Kg2 {[%clk 0:01:02]}  Rc1 {[%clk 0:00:03]} 52. Kh3 {[%clk 0:01:01]}  Rf1 {[%clk 0:00:02]} 53. Kg3 {[%clk 0:01:00]}  h4+ {[%clk 0:00:02]} 54. Kxh4 {[%clk 0:00:58]}  Rxf4+ {[%clk 0:00:02]} 55. Kg3 {[%clk 0:00:57]}  Rf5 {[%clk 0:00:01]} 56. Nd3 {[%clk 0:00:55]}  Kxc6 {[%clk 0:00:01]} 57. Kg4 {[%clk 0:00:54]} 1-0


[Site "https://www.chess.com"]

[Event "Titled Tuesday Blitz February 28 Early 2023"]
[White "Heinemann, Josefine"]
[Black "Priasmoro, Novendra"]
[WhiteFideId "12900460"]
[BlackFideId "7105029"]
[WhiteElo "2342"]
[BlackElo "2412"]
[Result "0-1"]
[Round "03"]
[TimeControl "180+2"]
[Date "2023.02.28"]
[WhiteClock "0:00:05"]
[BlackClock "0:00:32"]

1. e4 {[%clk 0:03:00]}  e5 {[%clk 0:02:54]} 2. Nf3 {[%clk 0:02:58]}  Nf6 {[%clk 0:02:54]} 3. Nxe5 {[%clk 0:02:53]}  d6 {[%clk 0:02:55]} 4. Nf3 {[%clk 0:02:52]}  Nxe4 {[%clk 0:02:55]} 5. d4 {[%clk 0:02:52]}  d5 {[%clk 0:02:54]} 6. Bd3 {[%clk 0:02:51]}  Bd6 {[%clk 0:02:52]} 7. O-O {[%clk 0:02:51]}  O-O {[%clk 0:02:52]} 8. c4 {[%clk 0:02:51]}  c6 {[%clk 0:02:53]} 9. Nc3 {[%clk 0:02:52]}  Re8 {[%clk 0:02:36]} 10. Re1 {[%clk 0:02:50]}  Nxc3 {[%clk 0:02:33]} 11. Rxe8+ {[%clk 0:02:33]}  Qxe8 {[%clk 0:02:34]} 12. bxc3 {[%clk 0:02:34]}  dxc4 {[%clk 0:02:33]} 13. Bxc4 {[%clk 0:02:33]}  Bg4 {[%clk 0:02:33]} 14. h3 {[%clk 0:02:31]}  Bh5 {[%clk 0:02:32]} 15. Rb1 {[%clk 0:02:22]}  b5 {[%clk 0:02:17]} 16. Bd3 {[%clk 0:02:05]}  Nd7 {[%clk 0:02:11]} 17. Be3 {[%clk 0:02:04]}  Nb6 {[%clk 0:02:08]} 18. Bxh7+ {[%clk 0:01:27]}  Kxh7 {[%clk 0:02:05]} 19. Ng5+ {[%clk 0:01:27]}  Kg6 {[%clk 0:02:00]} 20. g4 {[%clk 0:01:27]}  Bxg4 {[%clk 0:01:53]} 21. Qxg4 {[%clk 0:01:25]}  f5 {[%clk 0:01:54]} 22. Qg2 {[%clk 0:01:22]}  Kf6 {[%clk 0:01:53]} 23. Re1 {[%clk 0:01:09]}  Nd5 {[%clk 0:01:45]} 24. Bd2 {[%clk 0:01:02]}  Qd7 {[%clk 0:01:32]} 25. Re6+ {[%clk 0:00:59]}  Qxe6 {[%clk 0:01:33]} 26. Nxe6 {[%clk 0:01:00]}  Kxe6 {[%clk 0:01:34]} 27. Qxg7 {[%clk 0:00:59]}  Nf6 {[%clk 0:01:34]} 28. Kf1 {[%clk 0:00:58]}  Be7 {[%clk 0:01:27]} 29. Qg3 {[%clk 0:00:51]}  Bd6 {[%clk 0:01:24]} 30. Bf4 {[%clk 0:00:49]}  Be7 {[%clk 0:01:10]} 31. Qe3+ {[%clk 0:00:47]}  Kf7 {[%clk 0:01:09]} 32. Qe5 {[%clk 0:00:45]}  Rd8 {[%clk 0:01:02]} 33. Qxf5 {[%clk 0:00:43]}  c5 {[%clk 0:01:02]} 34. Be5 {[%clk 0:00:42]}  cxd4 {[%clk 0:01:02]} 35. cxd4 {[%clk 0:00:40]}  b4 {[%clk 0:01:01]} 36. h4 {[%clk 0:00:40]}  a5 {[%clk 0:00:59]} 37. h5 {[%clk 0:00:40]}  a4 {[%clk 0:00:58]} 38. Qg6+ {[%clk 0:00:23]}  Ke6 {[%clk 0:00:58]} 39. Bxf6 {[%clk 0:00:21]}  Bxf6 {[%clk 0:00:59]} 40. Qe4+ {[%clk 0:00:21]}  Kd6 {[%clk 0:00:55]} 41. d5 {[%clk 0:00:20]}  Bc3 {[%clk 0:00:53]} 42. Qe6+ {[%clk 0:00:18]}  Kc7 {[%clk 0:00:49]} 43. Qc6+ {[%clk 0:00:18]}  Kb8 {[%clk 0:00:49]} 44. Qxa4 {[%clk 0:00:18]}  Rxd5 {[%clk 0:00:48]} 45. h6 {[%clk 0:00:18]}  Rd8 {[%clk 0:00:44]} 46. h7 {[%clk 0:00:17]}  Kc7 {[%clk 0:00:45]} 47. Qa7+ {[%clk 0:00:16]}  Kc6 {[%clk 0:00:44]} 48. Qf7 {[%clk 0:00:16]}  Kb6 {[%clk 0:00:42]} 49. Qg8 {[%clk 0:00:15]}  Kc7 {[%clk 0:00:40]} 50. Kg2 {[%clk 0:00:15]}  Kd7 {[%clk 0:00:40]} 51. f4 {[%clk 0:00:15]}  Re8 {[%clk 0:00:41]} 52. f5 {[%clk 0:00:14]}  Ke7 {[%clk 0:00:41]} 53. Qe6+ {[%clk 0:00:09]}  Kd8 {[%clk 0:00:41]} 54. Qd6+ {[%clk 0:00:08]}  Kc8 {[%clk 0:00:42]} 55. Kf3 {[%clk 0:00:08]}  Rh8 {[%clk 0:00:38]} 56. f6 {[%clk 0:00:07]}  Rxh7 {[%clk 0:00:36]} 57. Qc6+ {[%clk 0:00:07]}  Kd8 {[%clk 0:00:37]} 58. Qd5+ {[%clk 0:00:07]}  Kc7 {[%clk 0:00:36]} 59. Qc5+ {[%clk 0:00:07]}  Kb7 {[%clk 0:00:35]} 60. Qb5+ {[%clk 0:00:07]}  Ka7 {[%clk 0:00:35]} 61. Qd3 {[%clk 0:00:06]}  Rh3+ {[%clk 0:00:30]} 62. Ke4 {[%clk 0:00:05]}  Rxd3 {[%clk 0:00:31]} 63. Kxd3 {[%clk 0:00:06]}  Bxf6 {[%clk 0:00:31]} 64. Kc4 {[%clk 0:00:06]}  Be7 {[%clk 0:00:32]} 65. Kb3 {[%clk 0:00:05]}  Kb6 {[%clk 0:00:32]} 66. a4 {[%clk 0:00:05]}  bxa3 {[%clk 0:00:32]} 67. Ka2 {[%clk 0:00:05]}  Kb5 {[%clk 0:00:32]} 0-1


[Site "https://www.chess.com"]

[Event "Titled Tuesday Blitz February 28 Early 2023"]
[White "Zia, Tahsin Tajwar"]
[Black "Poliakova, Varvara"]
[WhiteFideId "10211888"]
[BlackFideId "13518313"]
[WhiteElo "2061"]
[BlackElo "2075"]
[Result "0-1"]
[Round "03"]
[TimeControl "180+2"]
[Date "2023.02.28"]
[WhiteClock "0:00:17"]
[BlackClock "0:02:02"]

1. d4 {[%clk 0:02:59]}  f5 {[%clk 0:02:59]} 2. Nc3 {[%clk 0:02:50]}  d5 {[%clk 0:02:57]} 3. Bf4 {[%clk 0:02:49]}  e6 {[%clk 0:02:57]} 4. e3 {[%clk 0:02:47]}  c6 {[%clk 0:02:56]} 5. Nf3 {[%clk 0:02:34]}  Nf6 {[%clk 0:02:55]} 6. Ne5 {[%clk 0:02:27]}  Be7 {[%clk 0:02:53]} 7. h3 {[%clk 0:02:18]}  O-O {[%clk 0:02:53]} 8. g4 {[%clk 0:02:15]}  Nbd7 {[%clk 0:02:46]} 9. gxf5 {[%clk 0:01:57]}  exf5 {[%clk 0:02:47]} 10. Bd3 {[%clk 0:01:53]}  Ne4 {[%clk 0:02:45]} 11. f3 {[%clk 0:01:30]}  Bh4+ {[%clk 0:02:43]} 12. Ke2 {[%clk 0:01:25]}  Nf2 {[%clk 0:02:39]} 13. Qg1 {[%clk 0:01:18]}  Nxh1 {[%clk 0:02:37]} 14. Qxh1 {[%clk 0:01:19]}  Nxe5 {[%clk 0:02:35]} 15. Bxe5 {[%clk 0:01:18]}  Bf6 {[%clk 0:02:35]} 16. f4 {[%clk 0:01:13]}  Bxe5 {[%clk 0:02:31]} 17. dxe5 {[%clk 0:01:14]}  d4 {[%clk 0:02:30]} 18. Rg1 {[%clk 0:01:14]}  dxc3 {[%clk 0:02:27]} 19. Qg2 {[%clk 0:01:08]}  Qe7 {[%clk 0:02:26]} 20. Bc4+ {[%clk 0:01:07]}  Kh8 {[%clk 0:02:26]} 21. bxc3 {[%clk 0:01:03]}  a5 {[%clk 0:02:23]} 22. Qf3 {[%clk 0:00:49]}  b5 {[%clk 0:02:21]} 23. Bd3 {[%clk 0:00:40]}  Be6 {[%clk 0:02:16]} 24. Qh5 {[%clk 0:00:27]}  Qf7 {[%clk 0:02:12]} 25. Qh4 {[%clk 0:00:24]}  Rab8 {[%clk 0:02:05]} 26. Rg5 {[%clk 0:00:22]}  g6 {[%clk 0:02:01]} 27. Qg3 {[%clk 0:00:16]}  c5 {[%clk 0:02:01]} 28. h4 {[%clk 0:00:15]}  c4 {[%clk 0:02:00]} 29. h5 {[%clk 0:00:16]}  cxd3+ {[%clk 0:02:01]} 30. cxd3 {[%clk 0:00:17]}  Rg8 {[%clk 0:02:01]} 31. hxg6 {[%clk 0:00:17]}  Rxg6 {[%clk 0:02:02]} 0-1


[Site "https://www.chess.com"]

[Event "Titled Tuesday Blitz February 28 Early 2023"]
[White "Al-Tarboush, Ward"]
[Black "Hajiyev, Kanan"]
[WhiteFideId "7601450"]
[BlackFideId "13404148"]
[WhiteElo "2267"]
[BlackElo "2103"]
[Result "1-0"]
[Round "03"]
[TimeControl "180+2"]
[Date "2023.02.28"]
[WhiteClock "0:01:57"]
[BlackClock "0:00:12"]

1. e4 {[%clk 0:02:59]}  c6 {[%clk 0:02:59]} 2. Nf3 {[%clk 0:02:59]}  d5 {[%clk 0:03:00]} 3. Nc3 {[%clk 0:02:59]}  a6 {[%clk 0:03:01]} 4. d4 {[%clk 0:02:55]}  Bg4 {[%clk 0:02:59]} 5. Bd3 {[%clk 0:02:49]}  e6 {[%clk 0:02:59]} 6. O-O {[%clk 0:02:49]}  Nf6 {[%clk 0:02:59]} 7. e5 {[%clk 0:02:47]}  Nfd7 {[%clk 0:02:59]} 8. h3 {[%clk 0:02:47]}  Bh5 {[%clk 0:02:59]} 9. g4 {[%clk 0:02:48]}  Bg6 {[%clk 0:02:59]} 10. Ne2 {[%clk 0:02:48]}  c5 {[%clk 0:02:58]} 11. c3 {[%clk 0:02:47]}  Nc6 {[%clk 0:02:58]} 12. Nf4 {[%clk 0:02:43]}  Bxd3 {[%clk 0:02:55]} 13. Qxd3 {[%clk 0:02:44]}  cxd4 {[%clk 0:02:50]} 14. cxd4 {[%clk 0:02:44]}  Be7 {[%clk 0:02:37]} 15. Nh5 {[%clk 0:02:42]}  O-O {[%clk 0:02:27]} 16. Kg2 {[%clk 0:02:41]}  f6 {[%clk 0:02:22]} 17. Be3 {[%clk 0:02:37]}  fxe5 {[%clk 0:02:19]} 18. Nxe5 {[%clk 0:02:32]}  Ndxe5 {[%clk 0:02:13]} 19. dxe5 {[%clk 0:02:32]}  Nxe5 {[%clk 0:02:07]} 20. Qd4 {[%clk 0:02:32]}  Bf6 {[%clk 0:01:49]} 21. g5 {[%clk 0:02:32]}  Nc6 {[%clk 0:01:50]} 22. Qg4 {[%clk 0:02:32]}  Bxb2 {[%clk 0:01:44]} 23. Rab1 {[%clk 0:02:30]}  Be5 {[%clk 0:01:16]} 24. Qxe6+ {[%clk 0:02:30]}  Kh8 {[%clk 0:01:15]} 25. Rxb7 {[%clk 0:02:31]}  Qc8 {[%clk 0:01:01]} 26. Qxc8 {[%clk 0:02:26]}  Raxc8 {[%clk 0:01:02]} 27. f4 {[%clk 0:02:25]}  Bc3 {[%clk 0:00:50]} 28. Rc1 {[%clk 0:02:26]}  Nd8 {[%clk 0:00:44]} 29. Rxg7 {[%clk 0:02:20]}  Bxg7 {[%clk 0:00:39]} 30. Rxc8 {[%clk 0:02:20]}  d4 {[%clk 0:00:35]} 31. Bd2 {[%clk 0:02:08]}  d3 {[%clk 0:00:35]} 32. Nxg7 {[%clk 0:02:07]}  Kxg7 {[%clk 0:00:36]} 33. Bc3+ {[%clk 0:02:07]}  Kg6 {[%clk 0:00:34]} 34. Kf3 {[%clk 0:02:04]}  Ne6 {[%clk 0:00:34]} 35. Rxf8 {[%clk 0:02:03]}  Nxf8 {[%clk 0:00:35]} 36. Ke4 {[%clk 0:02:04]}  Nd7 {[%clk 0:00:26]} 37. Kxd3 {[%clk 0:02:04]}  Kf5 {[%clk 0:00:27]} 38. Ke3 {[%clk 0:02:03]}  Nc5 {[%clk 0:00:24]} 39. h4 {[%clk 0:02:04]}  Ne4 {[%clk 0:00:23]} 40. Be5 {[%clk 0:02:03]}  Ng3 {[%clk 0:00:23]} 41. Kf3 {[%clk 0:02:03]}  Nh5 {[%clk 0:00:24]} 42. a4 {[%clk 0:02:02]}  h6 {[%clk 0:00:20]} 43. gxh6 {[%clk 0:02:01]}  Kg6 {[%clk 0:00:20]} 44. Kg4 {[%clk 0:02:00]}  Kxh6 {[%clk 0:00:21]} 45. a5 {[%clk 0:01:57]}  Kg6 {[%clk 0:00:12]} 46. f5+ {[%clk 0:01:58]}  Kh6 {[%clk 0:00:12]} 47. Bf4+ {[%clk 0:01:57]} 1-0


[Site "https://www.chess.com"]

[Event "Titled Tuesday Blitz February 28 Early 2023"]
[White "Devaev, Alexander"]
[Black "Shapiro, Viktor"]
[WhiteFideId "4169395"]
[BlackFideId "4175700"]
[WhiteElo "2225"]
[BlackElo "2132"]
[Result "0-1"]
[Round "03"]
[TimeControl "180+2"]
[Date "2023.02.28"]
[WhiteClock "0:00:08"]
[BlackClock "0:00:10"]

1. d4 {[%clk 0:02:59]}  Nf6 {[%clk 0:02:55]} 2. c4 {[%clk 0:02:59]}  e6 {[%clk 0:02:53]} 3. Nf3 {[%clk 0:02:59]}  c5 {[%clk 0:02:52]} 4. d5 {[%clk 0:02:59]}  exd5 {[%clk 0:02:52]} 5. cxd5 {[%clk 0:02:59]}  d6 {[%clk 0:02:53]} 6. Nc3 {[%clk 0:02:59]}  g6 {[%clk 0:02:53]} 7. e4 {[%clk 0:03:00]}  Bg7 {[%clk 0:02:54]} 8. h3 {[%clk 0:03:00]}  O-O {[%clk 0:02:54]} 9. Bd3 {[%clk 0:03:01]}  b5 {[%clk 0:02:50]} 10. Nxb5 {[%clk 0:03:00]}  Nxe4 {[%clk 0:02:44]} 11. Bxe4 {[%clk 0:03:00]}  Re8 {[%clk 0:02:45]} 12. Ng5 {[%clk 0:03:00]}  f5 {[%clk 0:02:38]} 13. Ne6 {[%clk 0:02:05]}  Bxe6 {[%clk 0:02:36]} 14. dxe6 {[%clk 0:02:05]}  fxe4 {[%clk 0:02:32]} 15. O-O {[%clk 0:02:05]}  d5 {[%clk 0:02:23]} 16. Bf4 {[%clk 0:01:38]}  Na6 {[%clk 0:02:22]} 17. Nc3 {[%clk 0:01:37]}  Bxc3 {[%clk 0:02:10]} 18. bxc3 {[%clk 0:01:37]}  Rxe6 {[%clk 0:02:10]} 19. Qg4 {[%clk 0:01:28]}  Qd7 {[%clk 0:02:05]} 20. Rad1 {[%clk 0:01:28]}  Rae8 {[%clk 0:02:01]} 21. h4 {[%clk 0:01:24]}  d4 {[%clk 0:01:54]} 22. h5 {[%clk 0:01:13]}  Qd5 {[%clk 0:01:52]} 23. cxd4 {[%clk 0:01:11]}  cxd4 {[%clk 0:01:51]} 24. h6 {[%clk 0:01:01]}  Nc5 {[%clk 0:01:47]} 25. Rc1 {[%clk 0:00:42]}  Nd3 {[%clk 0:01:09]} 26. Rc7 {[%clk 0:00:40]}  R8e7 {[%clk 0:01:08]} 27. Rc8+ {[%clk 0:00:36]}  Re8 {[%clk 0:01:06]} 28. Rc7 {[%clk 0:00:37]}  R8e7 {[%clk 0:01:04]} 29. Rc8+ {[%clk 0:00:36]}  Kf7 {[%clk 0:01:03]} 30. Rh8 {[%clk 0:00:33]}  Qf5 {[%clk 0:01:02]} 31. Qxf5+ {[%clk 0:00:19]}  gxf5 {[%clk 0:01:02]} 32. Bg5 {[%clk 0:00:14]}  Kg6 {[%clk 0:00:56]} 33. Bxe7 {[%clk 0:00:13]}  Rxe7 {[%clk 0:00:57]} 34. Rd8 {[%clk 0:00:14]}  Nf4 {[%clk 0:00:56]} 35. Rd6+ {[%clk 0:00:09]}  Kg5 {[%clk 0:00:53]} 36. g3 {[%clk 0:00:10]}  Ne2+ {[%clk 0:00:48]} 37. Kg2 {[%clk 0:00:10]}  d3 {[%clk 0:00:47]} 38. Rh1 {[%clk 0:00:08]}  f4 {[%clk 0:00:40]} 39. Rd5+ {[%clk 0:00:05]}  Kg6 {[%clk 0:00:37]} 40. Rd6+ {[%clk 0:00:05]}  Kg5 {[%clk 0:00:34]} 41. Rd5+ {[%clk 0:00:03]}  Kf6 {[%clk 0:00:33]} 42. Rd6+ {[%clk 0:00:04]}  Ke5 {[%clk 0:00:33]} 43. Ra6 {[%clk 0:00:04]}  fxg3 {[%clk 0:00:28]} 44. fxg3 {[%clk 0:00:04]}  Rf7 {[%clk 0:00:22]} 45. Rh5+ {[%clk 0:00:04]}  Kd4 {[%clk 0:00:22]} 46. Rh4 {[%clk 0:00:04]}  d2 {[%clk 0:00:18]} 47. Rd6+ {[%clk 0:00:04]}  Ke3 {[%clk 0:00:13]} 48. Rh5 {[%clk 0:00:04]}  Nd4 {[%clk 0:00:09]} 49. Rh1 {[%clk 0:00:03]}  Rf2+ {[%clk 0:00:08]} 50. Kh3 {[%clk 0:00:03]}  Nf3 {[%clk 0:00:07]} 51. Rd1 {[%clk 0:00:03]}  Ke2 {[%clk 0:00:07]} 52. Ra1 {[%clk 0:00:03]}  e3 {[%clk 0:00:07]} 53. g4 {[%clk 0:00:02]}  Rh2+ {[%clk 0:00:07]} 54. Kg3 {[%clk 0:00:03]}  Rf2 {[%clk 0:00:06]} 55. g5 {[%clk 0:00:03]}  Nxg5 {[%clk 0:00:07]} 56. Kg4 {[%clk 0:00:04]}  Ne4 {[%clk 0:00:07]} 57. Rd7 {[%clk 0:00:04]}  Nf6+ {[%clk 0:00:07]} 58. Kg5 {[%clk 0:00:04]}  Nxd7 {[%clk 0:00:02]} 59. Kh5 {[%clk 0:00:04]}  Nc5 {[%clk 0:00:03]} 60. Kg4 {[%clk 0:00:05]}  Rg2+ {[%clk 0:00:03]} 61. Kh3 {[%clk 0:00:05]}  Rg6 {[%clk 0:00:03]} 62. Rg1 {[%clk 0:00:05]}  Nd3 {[%clk 0:00:04]} 63. Rxg6 {[%clk 0:00:05]}  hxg6 {[%clk 0:00:05]} 64. h7 {[%clk 0:00:05]}  d1=Q {[%clk 0:00:06]} 65. h8=Q {[%clk 0:00:06]}  Qh1+ {[%clk 0:00:06]} 66. Kg4 {[%clk 0:00:07]}  Qxh8 {[%clk 0:00:07]} 67. Kg5 {[%clk 0:00:08]}  Qd4 {[%clk 0:00:08]} 68. Kh6 {[%clk 0:00:08]}  Kd2 {[%clk 0:00:09]} 69. Kg5 {[%clk 0:00:08]}  e2 {[%clk 0:00:10]} 0-1


[Site "https://www.chess.com"]

[Event "Titled Tuesday Blitz February 28 Early 2023"]
[White "Zhukova, Natalia"]
[Black "Odegov, Artem"]
[WhiteFideId "14101513"]
[BlackFideId "34183644"]
[WhiteElo "2297"]
[BlackElo "2300"]
[Result "1-0"]
[Round "03"]
[TimeControl "180+2"]
[Date "2023.02.28"]
[WhiteClock "0:00:13"]
[BlackClock "0:00:30"]

1. c4 {[%clk 0:03:00]}  e6 {[%clk 0:02:59]} 2. Nc3 {[%clk 0:03:00]}  d5 {[%clk 0:02:59]} 3. d4 {[%clk 0:03:00]}  c5 {[%clk 0:02:59]} 4. e3 {[%clk 0:02:59]}  Nc6 {[%clk 0:02:59]} 5. Nf3 {[%clk 0:03:00]}  Nf6 {[%clk 0:02:59]} 6. a3 {[%clk 0:03:00]}  dxc4 {[%clk 0:03:00]} 7. Bxc4 {[%clk 0:02:59]}  a6 {[%clk 0:03:00]} 8. Bd3 {[%clk 0:02:55]}  b5 {[%clk 0:02:59]} 9. O-O {[%clk 0:02:55]}  Bb7 {[%clk 0:02:59]} 10. dxc5 {[%clk 0:02:52]}  Bxc5 {[%clk 0:03:00]} 11. b4 {[%clk 0:02:52]}  Be7 {[%clk 0:02:59]} 12. Bb2 {[%clk 0:02:53]}  O-O {[%clk 0:02:59]} 13. Rc1 {[%clk 0:02:48]}  Qb6 {[%clk 0:02:58]} 14. Ne4 {[%clk 0:02:41]}  Rfd8 {[%clk 0:02:42]} 15. Qc2 {[%clk 0:02:29]}  Rxd3 {[%clk 0:02:14]} 16. Qxd3 {[%clk 0:02:14]}  Nxb4 {[%clk 0:02:12]} 17. Nxf6+ {[%clk 0:01:51]}  Bxf6 {[%clk 0:02:07]} 18. axb4 {[%clk 0:01:48]}  Bxb2 {[%clk 0:02:07]} 19. Ng5 {[%clk 0:01:34]}  h6 {[%clk 0:01:31]} 20. Qh7+ {[%clk 0:01:20]}  Kf8 {[%clk 0:01:30]} 21. Rc2 {[%clk 0:01:16]}  Be5 {[%clk 0:01:18]} 22. Nf3 {[%clk 0:01:09]}  Bf6 {[%clk 0:01:13]} 23. Rfc1 {[%clk 0:01:05]}  Rd8 {[%clk 0:01:10]} 24. Qh8+ {[%clk 0:00:38]}  Ke7 {[%clk 0:01:09]} 25. Rc7+ {[%clk 0:00:38]}  Rd7 {[%clk 0:01:08]} 26. Rxd7+ {[%clk 0:00:37]}  Kxd7 {[%clk 0:01:09]} 27. Qf8 {[%clk 0:00:37]}  Bxf3 {[%clk 0:01:01]} 28. Qxf7+ {[%clk 0:00:33]}  Be7 {[%clk 0:01:00]} 29. Qxf3 {[%clk 0:00:31]}  Bxb4 {[%clk 0:01:00]} 30. h3 {[%clk 0:00:26]}  Ke7 {[%clk 0:00:57]} 31. Qg4 {[%clk 0:00:25]}  Bc5 {[%clk 0:00:43]} 32. Qxg7+ {[%clk 0:00:25]}  Kd6 {[%clk 0:00:44]} 33. Qxh6 {[%clk 0:00:24]}  b4 {[%clk 0:00:43]} 34. Rd1+ {[%clk 0:00:23]}  Ke7 {[%clk 0:00:34]} 35. Qg7+ {[%clk 0:00:22]}  Ke8 {[%clk 0:00:34]} 36. Qd7+ {[%clk 0:00:20]}  Kf8 {[%clk 0:00:35]} 37. Qc8+ {[%clk 0:00:20]}  Ke7 {[%clk 0:00:32]} 38. Rd7+ {[%clk 0:00:19]}  Kf6 {[%clk 0:00:33]} 39. Qh8+ {[%clk 0:00:19]}  Kf5 {[%clk 0:00:32]} 40. Qh5+ {[%clk 0:00:14]}  Ke4 {[%clk 0:00:29]} 41. Qg4+ {[%clk 0:00:13]}  Ke5 {[%clk 0:00:30]} 42. Qf4# {[%clk 0:00:13]} 1-0


[Site "https://www.chess.com"]

[Event "Titled Tuesday Blitz February 28 Early 2023"]
[White "Toktomushev, Teimur"]
[Black "Khumalo, Keith"]
[WhiteFideId "14176726"]
[BlackFideId "14319470"]
[WhiteElo "2106"]
[BlackElo "2056"]
[Result "1-0"]
[Round "03"]
[TimeControl "180+2"]
[Date "2023.02.28"]
[WhiteClock "0:00:07"]
[BlackClock "0:01:17"]

1. d4 {[%clk 0:02:59]}  Nf6 {[%clk 0:02:59]} 2. c4 {[%clk 0:03:00]}  e6 {[%clk 0:02:58]} 3. Nf3 {[%clk 0:02:59]}  c5 {[%clk 0:02:58]} 4. d5 {[%clk 0:02:59]}  exd5 {[%clk 0:02:59]} 5. cxd5 {[%clk 0:03:00]}  d6 {[%clk 0:03:00]} 6. Nc3 {[%clk 0:03:01]}  g6 {[%clk 0:03:01]} 7. Nd2 {[%clk 0:03:00]}  Bg7 {[%clk 0:02:56]} 8. e4 {[%clk 0:03:00]}  O-O {[%clk 0:02:55]} 9. Be2 {[%clk 0:03:00]}  Na6 {[%clk 0:02:47]} 10. O-O {[%clk 0:03:00]}  Nc7 {[%clk 0:02:47]} 11. h3 {[%clk 0:02:52]}  b6 {[%clk 0:02:47]} 12. Re1 {[%clk 0:02:32]}  Rb8 {[%clk 0:02:38]} 13. a4 {[%clk 0:01:59]}  a6 {[%clk 0:02:37]} 14. Nc4 {[%clk 0:01:56]}  b5 {[%clk 0:02:33]} 15. axb5 {[%clk 0:01:57]}  axb5 {[%clk 0:02:33]} 16. Na5 {[%clk 0:01:57]}  Bd7 {[%clk 0:02:34]} 17. Bf1 {[%clk 0:01:24]}  b4 {[%clk 0:02:01]} 18. Na4 {[%clk 0:01:11]}  Nb5 {[%clk 0:01:57]} 19. Nc6 {[%clk 0:00:51]}  Bxc6 {[%clk 0:01:55]} 20. dxc6 {[%clk 0:00:52]}  Nd4 {[%clk 0:01:56]} 21. Bf4 {[%clk 0:00:39]}  Re8 {[%clk 0:01:52]} 22. Bh2 {[%clk 0:00:28]}  Rxe4 {[%clk 0:01:49]} 23. Nxc5 {[%clk 0:00:14]}  dxc5 {[%clk 0:01:43]} 24. c7 {[%clk 0:00:14]}  Rc8 {[%clk 0:01:34]} 25. cxd8=Q+ {[%clk 0:00:13]}  Rxd8 {[%clk 0:01:35]} 26. Rxe4 {[%clk 0:00:14]}  Nxe4 {[%clk 0:01:36]} 27. Ra7 {[%clk 0:00:06]}  f5 {[%clk 0:01:27]} 28. Qa4 {[%clk 0:00:05]}  Kh8 {[%clk 0:01:28]} 29. Ra8 {[%clk 0:00:05]}  Bf6 {[%clk 0:01:23]} 30. Rxd8+ {[%clk 0:00:05]}  Bxd8 {[%clk 0:01:24]} 31. Qe8+ {[%clk 0:00:04]}  Kg7 {[%clk 0:01:25]} 32. Qxd8 {[%clk 0:00:05]}  h5 {[%clk 0:01:25]} 33. Be5+ {[%clk 0:00:05]}  Kh6 {[%clk 0:01:26]} 34. Bxd4 {[%clk 0:00:06]}  cxd4 {[%clk 0:01:17]} 35. Qxd4 {[%clk 0:00:07]}  Kg5 {[%clk 0:01:17]} 36. Qxb4 {[%clk 0:00:07]}  h4 {[%clk 0:01:17]} 37. Qe7+ {[%clk 0:00:07]} 1-0


[Site "https://www.chess.com"]